{"text_format":"1","workbook":"xlsx","n_sheets":4,"sheets":["Hoja6","DASBOARD","REPORTE","FUENTES"],"not_rendered":{"charts":6,"images":7,"macros":1,"external_links":0,"defined_names":2,"comments":0,"pivot_tables":6},"unopened":[],"bounds":{"document_bytes":16777216,"sheet_cells":100000,"rows_first":2000,"rows_last":500,"rows_between":2000,"halvings":0,"cell_chars":16384,"cell_head_chars":4096},"cells_cut":0,"cells_raw":0,"read":"whole","date_system":"1900"}

{"sheet":"Hoja6","index":0,"n_rows":24,"n_cols":16,"rows_kept":24,"cut":false,"hidden":false,"merged":[]}
[]
[]
[null,"Etiquetas de columna",null,"Etiquetas de fila","Suma de No. SEGUIMIENTOS REALIZADOS",null,"Etiquetas de fila","1 SEGUIMIENTO","2 SEGUIMIENTO ","3 SEGUIMIENTO ","4 SEGUIMIENTO ","5 SEGUIMIENTO ","6 SEGUIMIENTO","7 SEGUIMIENTO","8 SEGUIMIENTO","9 SEGUIMIENTO"]
["Valores","PM INCLUSIÓN","Total general","PM INCLUSIÓN",2,null,"PM INCLUSIÓN",0.68,0.74]
["Avance",0.74,0.74,"Total general",2,null,"Total general",0.68,0.74]
["En proceso",0.26,0.26]
["No. DE PLANES DE MEJORAMIENTO",{"$f":"+COUNT(REPORTE!D7:D64)","v":58}]
[]
[]
[]
[]
[]
[]
[]
[]
[0.2,1]
[0.3,1,null,null,"Etiquetas de fila","Cuenta de PRIMER SEGUIMIENTO",null,"Etiquetas de fila","Cuenta de PRIMER SEGUIMIENTO"]
[0.4,1,null,null,"PM INCLUSIÓN",1,null,2016,1]
[0.5,1,null,null,"Vigencia 2020",1,null,"Total general",1]
[0.6,1,null,null,"Total general",1]
[0.7,1]
[0.8,1,null,null,"OBSERVACIONES","Cuenta de PRIMER SEGUIMIENTO"]
[0.9,1,null,null,"En seguimiento a este plan se evidencia que el\nanterior seguimiento tuvo un alcance del 68%, se realizó mesa de\ntrabajo con planeación y equidad y diversidad donde se presentaron\nevidencias.",1]
[1,8,null,null,"Total general",1]

{"sheet":"DASBOARD","index":1,"n_rows":0,"n_cols":0,"rows_kept":0,"cut":false,"hidden":false,"merged":[]}

{"sheet":"REPORTE","index":2,"n_rows":65,"n_cols":18,"rows_kept":65,"cut":false,"hidden":false,"merged":[[4,1,4,17]]}
[]
[]
[]
[]
[]
[null,"PLANES DE MEJORAMIENTO","LINK DE ACCESO ONEDRIVE","No. SEGUIMIENTOS REALIZADOS","ESTADO DE AVANCE ACTUAL","PENDIENTE","PRIMER SEGUIMIENTO","SEGUNDO SEGUIMIENTO","TERCER SEGUIMIENTO","CUARTO SEGUIMIENTO","QUINTO SEGUIMIENTO","SEXTO SEGUIMIENTO","SEPTIMO SEGUIMIENTO","OCTAVO SEGUIMIENTO","NOVENO SEGUIMIENTO","VIGENCIA","OBSERVACIONES ","FECHA DE VENCIMIENTO "]
[null,"PM No. 570 SISTEMA DE GESTIÓN AMBIENTAL",null,{"$f":"+COUNT(G7:O7)","v":6},{"$f":"+MAX($G$7:$O$7)","v":1},{"$f":"100%-E7","v":0},0.31,0.65,0.72,0.77,0.98,1,null,null,null,2020,"El último seguimiento se realizó con corte a 20 de octubre del 2021.\nCabe destacar que derivada de la auditoria interna a los SIG se da cierre a un total de 15 hallazgos dejando pendientes por cierre 2 Planes de Mejoramiento.\nActualmente el PM 570 cuenta con un avance del 100%, cerrándose los dos hallazgos 2 y 17) pendientes de revisión relacionados con la actualización de la matriz legal del sistema de gestión ambiental.","Los planes de actividades propuestos dentro del plan de mejoramiento, tienen como fecha límite de cumplimiento, el 31 diciembre de 2020."]
[null,"PLAN ANUAL DE ADQUISICIONES",null,{"$f":"+COUNT(G8:O8)","v":1},{"$f":"+MAX($G$8:$O$8)","v":0.61},{"$f":"100%-E8","v":0.39},0.61,null,null,null,null,null,null,null,null,2022,"44 Lineas Proyectadas\n27 Lineas iniciadas/implementadas\n17 Lineas pendientes de iniciar","PAA VIGENCIA 2022"]
[null,"PM CITGO DIGITAL ",null,2,{"$f":"+MAX($G$9:$O$9)","v":0.4},{"$f":"100%-E9","v":0.6},0.26,0.4,null,null,null,null,null,null,null,2021,"Se realiza segundo seguimiento por parte del control interno al plan de mejoramiento para la implementación del proyecto CITGO DIGITAL (Centro de Innovación Tecnología y Gestión Organizacional) de la universidad de Cundinamarca, liderado por la facultad de ciencias administrativas, económicas y contables.","IV trimestre 2021"]
[null,"PM  DE DIAGNOSTICO ACADEMICO - OF GRADUADOS",null,1,{"$f":"+MAX($G$10:$O$10)","v":0.13750000000000001},0.86250000000000004,0.13750000000000001,null,null,null,null,null,null,null,null,2022,"Seguimiento con corte a marzo del 2022. Las actividades del presente plan de mejoramiento se encuentran contempladas hasta el 15 de diciembre del 2022, así las cosas, se encuentra dentro de los términos de ejecución.","La fecha de vencimiento del presente plan es el dia 15-12-2022"]
[null,"PM MINISTERIO DE EDUCACIÓN ",null,3,{"$f":"+MAX($G$11:$O$11)","v":0.83},0.17000000000000004,0.75,0.77,0.83,null,null,null,null,null,null,2020,"Con corte a 16 de marzo del año 2022. El plan cuenta con 22 actividades de las cuales 7 abiertas en términos de tiempo por la modalidad de seguimiento (diario, semanal, mensual y/o trimestral). 6 se encuentran vencidas y 9 Cerradas.","El plan de mejoramiento tiene un termino de ejecución desde el año el 2020 hasta el 2021"]
[null,"PM INCLUSIÓN",null,2,{"$f":"+MAX($G$12:$O$12)","v":0.74},0.26,0.68,0.74,null,null,null,null,null,null,null,2016,"En seguimiento a este plan se evidencia que el\nanterior seguimiento tuvo un alcance del 68%, se realizó mesa de\ntrabajo con planeación y equidad y diversidad donde se presentaron\nevidencias.","Vigencia 2020"]
[null,"PM RXD VIGENCIA 2019",null,2,{"$f":"+MAX($G$13:$O$13)","v":0.98},{"$f":"100%-E13","v":2.0000000000000018E-2},0.91,0.98,null,null,null,null,null,null,null,2019,"En verificación de esta vigencia se verifica que\ntenía siete (7) el cual era el 91%, las actividades pendientes las cuales\nse solicitaron por medio de oficio y correo electrónico a los procesos los\ncuales allegaron evidencias respectivas a cada actividad, las cuales se\nencuentran en el drive.","Vigencia 2019"]
[null,"PM RXD  VIGENCIA 2020 SGC",null,1,{"$f":"+MAX($G$14:$O$14)","v":0.95},5.0000000000000044E-2,0.95,null,null,null,null,null,null,null,null,2020,"En revisión de a las diez (10) actividades\npendientes se realiza el seguimiento con corte al 28 de marzo de 2022\nel cual se logra cerrar con la oportuna respuesta de los procesos de\ncuatro (4) actividades.","Vigencia 2020"]
[null,"PM RXD VIGENCIA 2020 SGSI",null,1,{"$f":"+MAX($G$15:$O$15)","v":0.92},7.999999999999996E-2,0.92,null,null,null,null,null,null,null,null,2020,"En revisión de las dos (2) actividades pendientes\nse realiza el seguimiento y se da por cerrada una (1) actividad al\nevidenciar su cumplimiento total.","Vigencia 2020"]
[null,"PM RXD VIGENCIA 2020 SG-SST",null,1,{"$f":"+MAX($G$16:$O$16)","v":1},0,1,null,null,null,null,null,null,null,null,2020,"En seguimiento esta actividad se evidencia que en\nel seguimiento anterior quedo a un 96% quedando pendiente una\nactividad la cual se logró gracias al proceso dar cierre y llegar al\ncumplimiento total","Vigencia 2020"]
[null,"PM RXD VIGENCIA 2021 SGC",null,{"$f":"+COUNT(G17:O17)","v":1},{"$f":"+MAX($G$17:$O$17)","v":0.11},0.89,0.11,null,null,null,null,null,null,null,null,2021,"En seguimiento a este plan se evidencia veintisiete\n(27) actividades las cuales cuatro (4) tenían corte el primer trimestre el\nresto se encuentran en términos.","Vigencia 2021"]
[null,"PM RXD VIGENCIA 2021 SGA",null,1,{"$f":"+MAX($G$18:$O$18)","v":0.83},0.17000000000000004,0.83,null,null,null,null,null,null,null,null,2021,": En seguimiento a esta actividad se empieza con\nun primer seguimiento, gracias a el proceso se presenta un buen\navance","Vigencia 2021"]
[null,"PM RXD VIGENCIA 2021 SGSI",null,1,{"$f":"+MAX($G$19:$O$19)","v":0.09},0.91,0.09,null,null,null,null,null,null,null,null,2021,"En primer seguimiento a este plan se evidencia\nque de ocho (8) actividades planteadas una (1) tenía corte para el mes\nde marzo el resto de actividades se encuentran en términos.","vigencia 2021"]
[null,"PM RXD VIGENCIA 2021 SG-SST",null,1,{"$f":"+MAX($G$20:$O$20)","v":0.17},0.83,0.17,null,null,null,null,null,null,null,null,2021,"En seguimiento a este plan se evidencia seis (6) actividades las cuales dos (2) tenían corte el primer trimestre el resto se encuentran en términos.","El plan de mejoramiento tiene un término de ejecución hasta el año  2022. "]
[null,"PM ACCESIBILIDAD-INFRAESTRUCTURA",null,0,{"$f":"+MAX($G$21:$O$21)","v":0},{"$f":"100%-E21","v":1},"0'%",null,null,null,null,null,null,null,null,2021,"En seguimiento a este plan de mejoramiento se\nrealizo mesa de trabajo con la oficina de planeación y equidad y\ndiversidad para dar orientación sobre metodología para crear el plan hasta el momento no se ha obtenido como tal el plan de mejoramiento\npara este plan.","Vigencia 2021"]
[null,"PM ACCESIBILIDAD WEB",null,1,{"$f":"+MAX($G$22:$O$22)","v":0.33},0.66999999999999993,0.33,null,null,null,null,null,null,null,null,2022,"El ultimo seguimiento se realizó con corte a 31 de marzo del año 2022","El plan de mejoramiento tiene un término de ejecución hasta el 30 nov 2022. "]
[null,"PM REACREDITACIÓN LIC. CIENCIAS SOCIALES",null,5,{"$f":"+MAX(G23:O23)","v":0.53},{"$f":"100%-E23","v":0.47},0.15,0.21,0.32,0.35,0.53,null,null,null,null,"2020-2022","El Quinto  seguimiento se realizó con corte a 30 de marzo  del 2022.El plan de mejoramiento contempla 22 actividades de las cuales 2 se encuentran cerradas, 3 actividades vencidas en ejecución y 17 actividades en términos.","El plan de mejoramiento tiene un término de ejecución, desde el 2020 hasta el 2022. "]
[null,"PM DIALOGANDO CON EL MUNDO ",null,1,0.126,0.874,0.126,null,null,null,null,null,null,null,null,2021,"Con corte a 31 de marzo del año 2022 el PM cuenta con un avance de 12,6%, donde se presenta un avance general de cada una de las 18 actividades encontrándose que la actividad número (9) se encuentra con 0% de avance y que las demás se encuentran en ejecución por lo que se espera que en el segundo seguimiento se pueda aplicar el porcentaje esperado para el plan","El plan de mejoramiento tiene un termino de ejecución hasta el mes de septiembre del 2021.\n"]
[null,"PM CONTRALORIA VIG 2020",null,{"$f":"+COUNT(G25:H25)","v":2},0.35,{"$f":"100%-E25","v":0.65},0.33,0.35,0,null,null,null,null,null,null,"2021-2022","El P.M. cuenta con 80 Actividades;  52 de ellas se encuentran abiertas equivalentes al  65% del plan de mejoramiento y 28 cerradas.\nDe las 52 actividades abiertas  se encuentran vencidas 22 (Cumpl. parcial), en terminos  26 y 4 vencidas (No Cumple)","El Plan de Mejoramiento tiene un termino de ejecución hasta agosto del 2022\n"]
[null,"PM CONDICIONES INICIALES",null,9,{"$f":"+MAX(G26:O26)","v":0.91},8.9999999999999969E-2,0.23,0.49,0.72,0.81,0.86,0.87,0.87,0.91,0.91,2019,"Actualmente el PM cuenta con un avance de 91%, conserva el mismo porcentaje de avance del último seguimiento por la naturaleza de las actividades y su necesario monitoreo por factor. El avance en la calificación se realizó en compañía de la Dirección de Autoevaluación y Acreditación el día viernes 01 de abril del 2022.En el presente seguimiento no se cierran actividades","31/12/2021. (Aún se cuenta con actividades que requieren monitoreo)."]
[null,"PM TRANSPARENCIA VIG 2020",null,4,{"$f":"+MAX(G27:O27)","v":0.9},{"$f":"100%-E27","v":9.9999999999999978E-2},0.43,0.8,0.9,0.9,null,null,null,null,null,2021,"Primer seguimiento con Corte a Marzo Vig 2021\nSegundo seguimiento con corte a 13 de julio 2021.\nTercer Seguimiento con corte a 14 de octubre del 2021.\nCuarto seguimiento con corte a 31 de marzo 2022","Vigencia 2021"]
[null,"PM FURAG - PLANEACIÓN",null,6,0.95,5.0000000000000044E-2,0.14000000000000001,0.45,0.56999999999999995,0.63,0.71,0.95,null,null,null,2020,"Las acciones pendientes por cumplir se articularan las los planes de trabajo de la implementación de las políticas del Modelo Integrado de Planeación y Gestión (MIPG).","Seguimiento con corte a marzo del 2022"]
[null,"PM FURAG - SISTEMAS Y TECNOLOGIA",null,6,0.28999999999999998,0.71,7.0000000000000007E-2,0.17,0.17,0.17,0.17,0.28999999999999998,null,null,null,"2020-2021","Las acciones pendientes por cumplir se articularan las los planes de trabajo de la implementación de las políticas del Modelo Integrado de Planeación y Gestión (MIPG).","Seguimiento con corte a marzo del 2022"]
[null,"PM FURAG - CONTROL INTERNO",null,5,0.85,0.15000000000000002,0.62,0.64,0.73,0.74,0.85,"MIGUEL ANGEL VALLEJO BURGOS",null,null,null,"2019-2020","Las acciones pendientes por cumplir se articularan las los planes de trabajo de la implementación de las políticas del Modelo Integrado de Planeación y Gestión (MIPG).","Seguimiento con corte a marzo del 2022"]
[null,"PM FURAG - SERVICIO DE ATENCIÓN AL CIUDADANO",null,6,0.67,0.32999999999999996,0.43,0.56999999999999995,0.62,0.62,0.67,0.67,null,null,null,"2019-2020","Las acciones pendientes por cumplir se articularan las los planes de trabajo de la implementación de las políticas del Modelo Integrado de Planeación y Gestión (MIPG).","Seguimiento con corte a marzo del 2022"]
[null,"PM FURAG - COMUNICACIONES",null,6,0.83,0.17000000000000004,0.57999999999999996,0.63,0.79,0.79,0.79,0.83,null,null,null,2020,"Las acciones pendientes por cumplir se articularan las los planes de trabajo de la implementación de las políticas del Modelo Integrado de Planeación y Gestión (MIPG).","Seguimiento con corte a marzo del 2022"]
[null,"PM FURAG - ARCHIVO Y CORRESPONDENCIA",null,6,0.96,4.0000000000000036E-2,0.75,0.92,0.96,0.96,0.96,0.96,null,null,null,"2019-2020","Las acciones pendientes por cumplir se articularan las los planes de trabajo de la implementación de las políticas del Modelo Integrado de Planeación y Gestión (MIPG).","Seguimiento con corte a marzo del 2022"]
[null,"PM CONDICIONES INSTITUCIONALES",null,8,0.86,0.14000000000000001,0.32700000000000001,0.45,0.68700000000000006,0.69099999999999995,0.81,0.85,0.85,0.86,null,2019,"Octavo  seguimiento con corte a Marzo 2022, aumenta en un 0,7% desde el último seguimiento.","El plan de actividades cuenta con 22 acciones a implementar durante la vigencia 2019, para lo cual quedan pendientes 5 acciones y garantizar el cumplimiento al 100%."]
[null,"PM OMIS - SECCIONAL UBATÉ",null,5,0.88,0.12,0.33,0.71,0.88,0.88,0.88,null,null,null,null,2020,"En seguimiento a las actividades con corte a 31 de marzo del año 2022  se evidencia que\nsiguen pendientes dos (2) actividades","Las actividades propuestos dentro del plan de mejoramiento, tienen como fecha límite de cumplimiento, el 31 diciembre de 2020"]
[null,"PM OMIS - SECCIONAL GIRARDOT",null,1,1,0,1,null,null,null,null,null,null,null,null,2020,"N/A","Las actividades propuestos dentro del plan de mejoramiento, tienen como fecha límite de cumplimiento, el 31 diciembre de 2021"]
[null,"PM OMIS - EXTENSIÓN ZIPAQUIRA",null,2,1,0,0.5,1,null,null,null,null,null,null,null,2020,"Segundo seguimiento con corte a mayo 20201.","Las actividades propuestos dentro del plan de mejoramiento, tienen como fecha límite de cumplimiento, el 31 diciembre de 2022"]
[null,"PM OMIS - EXTENSIÓN SOACHA",null,5,1,0,0.89,0.89,0.89,0.92,1,null,null,null,null,2020,"Segundo seguimiento con corte a mayo 20201.\nTercer Seguimiento con corte a 16 de julio 2021.\nCuarto Seguimiento con corte a 19 de Octubre del 2021.\nQuinto seguimiento con corte a 31 de marzo del año 2022.","Las actividades propuestos dentro del plan de mejoramiento, tienen como fecha límite de cumplimiento, el 31 diciembre de 2023"]
[null,"PM OMIS -  EXTENSIÓN FACATATIVA",null,1,1,0,1,null,null,null,null,null,null,null,null,2020,"N/A","Las actividades propuestos dentro del plan de mejoramiento, tienen como fecha límite de cumplimiento, el 31 diciembre de 2024"]
[null,"PM OMIS - EXTENSIÓN CHÍA",null,4,1,0,0.33,0.33,0.75,1,null,null,null,null,null,2020,"Segundo seguimiento con corte a mayo 20201.\nTercer Seguimiento con corte a 16 de julio 2021.\nCuarto Seguimiento con corte a 19 de Octubre del 2021.","Las actividades propuestos dentro del plan de mejoramiento, tienen como fecha límite de cumplimiento, el 31 diciembre de 2025"]
[null,"PM LEY DE PROTECCIÓN DE DATOS ",null,5,{"$f":"+MAX(G41:O41)","v":0.64},0.36,0.1,0.45,0.45,0.55000000000000004,0.64,null,null,null,null,2021,"Seguimiento con corte a marzo del 2022. Puntos por resaltar la ejecución de la auditoría interna realizada al sistema de gestión de seguridad de la información.","vigencia 2021"]
[null,"PM SG-SST",null,4,0.83,0.17000000000000004,0.28000000000000003,0.5,0.69,0.83,null,null,null,null,null,2022,"En seguimiento a este plan de mejoramiento a este\nplan de mejoramiento se evidencia un informe anterior en un 68% el\ncual se pudo lograr un avance gracias a los procesos involucrados y\nresponsables descritas en este plan de mejoramiento. ","Vigencia 2022"]
[null,"PM SABER PRO - ZOOTECNIA FGGA",null,2,1,{"$f":"100%-E43","v":0},0.88,1,null,null,null,null,null,null,null,2021,"Con corte a 28 de febrero del año 2022  el PM cuenta con un avance de 100%, cerrando todas las actividades planificadas para la vigencia 2021 ","Vigencia 2021"]
[null,"PM SABER PRO - ZOOTECNIA UBATE",null,2,1,0,0.77,1,null,null,null,null,null,null,null,2021,"Con corte a 28 de febrero del año 2022  el PM cuenta con un avance de 100%, cerrando todas las actividades planificadas para la vigencia 2021 ","Vigencia 2021"]
[null,"PM SABER PRO - MUSICA ZIPAQUIRA",null,1,{"$f":"+MAX(G45:O45)","v":1},{"$f":"100%-E45","v":0},1,null,null,null,null,null,null,null,null,2021,"Con corte a 28 de febrero del año 2022  el PM cuenta con un avance de 100%, cerrando todas las actividades planificadas para la vigencia 2021 ","Vigencia 2021"]
[null,"PM SABER PRO - ING ELECTRONICA FGGA",null,1,{"$f":"+MAX(G46:O46)","v":1},0,1,null,null,null,null,null,null,null,null,2021,"Con corte a 28 de febrero del año 2022  el PM cuenta con un avance de 100%, cerrando todas las actividades planificadas para la vigencia 2021 ","Vigencia 2021"]
[null,"PM SABER PRO - INGENIERIA AGRONOMICA FACA",null,2,1,0,0.71,1,null,null,null,null,null,null,null,2021,"Con corte a 28 de febrero del año 2022  el PM cuenta con un avance de 100%, cerrando todas las actividades planificadas para la vigencia 2021 ","Vigencia 2021"]
[null,"PM SABER PRO - INGENIERIA AGRONOMICA FGGA",null,2,1,0,0.71,1,null,null,null,null,null,null,null,2021,"Con corte a 28 de febrero del año 2022  el PM cuenta con un avance de 100%, cerrando todas las actividades planificadas para la vigencia 2021 ","Vigencia 2021"]
[null,"PM SABER PRO - ADMON EMPRESAS UBATE",null,2,1,0,0.67,1,null,null,null,null,null,null,null,2021,"Con corte a 28 de febrero del año 2022  el PM cuenta con un avance de 100%, cerrando todas las actividades planificadas para la vigencia 2021 ","Vigencia 2021"]
[null,"PM SABER PRO - ADMON EMPRESAS GDOT",null,2,1,0,0.8,1,null,null,null,null,null,null,null,2021,"Con corte a 28 de febrero del año 2022  el PM cuenta con un avance de 100%, cerrando todas las actividades planificadas para la vigencia 2021 ","Vigencia 2021"]
[null,"PM SABER PRO - LIC, EDU, BASIC HUMANI E INGLES",null,2,1,0,0.75,1,null,null,null,null,null,null,null,2021,"Con corte a 28 de febrero del año 2022  el PM cuenta con un avance de 100%, cerrando todas las actividades planificadas para la vigencia 2021 ","Vigencia 2021"]
[null,"POLITICA DE TALENTO HUMANO ",null,3,0.25,{"$f":"100%-E52","v":0.75},0,0.1,0.25,null,null,null,null,null,null,2021,"Se realiza primer seguimiento con corte a julio del 2021. \nSe realiza segundo seguimiento con corte a octubre del 2021.\nSe realiza tercer seguimiento con corte a marzo del año 2022","Vigencia 2021"]
[null,"POLITICA DE GESTIÓN DEL CONOCIMIENTO",null,3,{"$f":"+MAX(G53:O53)","v":0.06},{"$f":"100%-E53","v":0.94},0.04,0.06,0.06,null,null,null,null,null,null,2021,"Se realiza primer seguimiento con corte a julio del 2021. \nSe realiza segundo seguimiento con corte a octubre del 2021.\nSe realiza tercer seguimiento con corte a marzo del año 2022","Vigencia 2021"]
[null,"POLITICA DE PLANEACIÓN",null,3,0.57999999999999996,{"$f":"100%-E54","v":0.42000000000000004},0.17,0.5,0.57999999999999996,null,null,null,null,null,null,2021,"Se realiza primer seguimiento con corte a julio del 2021. \nSe realiza segundo seguimiento con corte a octubre del 2021.\nSe realiza tercer seguimiento con corte a marzo del año 2022","Vigencia 2021"]
[null,"POLITICA DE DEFENSA JURIDICA",null,3,0.25,{"$f":"100%-E55","v":0.75},0,0,0.25,null,null,null,null,null,null,2020,"Se realiza primer seguimiento con corte a julio del 2021. \nSe realiza segundo seguimiento con corte a octubre del 2021.\nSe realiza tercer seguimiento con corte a marzo del año 2022","Vigencia 2020"]
[null,"POLITICA DE CONTROL INTERNO",null,5,0.64,0.36,0.1,0.22,0.28999999999999998,0.53,0.64,null,null,null,null,2022,"Se realiza primer seguimiento con corte a julio del 2021. \nSe realiza segundo seguimiento con corte a octubre del 2021.\nSe realiza tercer seguimiento con corte a marzo del año 2022","Vigencia 2022"]
[null,"POLITICA DE FORTALECIMIENTO ORGANIZACIONAL ",null,4,0.33,{"$f":"100%-E57","v":0.66999999999999993},0.19,0.24,0.33,0.33,null,null,null,null,null,2023,"Se realiza primer seguimiento con corte a julio del 2021. \nSe realiza segundo seguimiento con corte a octubre del 2021.\nSe realiza tercer seguimiento con corte a marzo del año 2022","Vigencia 2023"]
[null,"POLITICA DE GOBIERNO DIGITAL",null,4,0.23,0.77,0.09,0.1,0.1,0.23,null,null,null,null,null,2021,"Se realiza primer seguimiento con corte a julio del 2021. \nSe realiza segundo seguimiento con corte a octubre del 2021.\nSe realiza tercer seguimiento con corte a marzo del año 2022","Vigencia 2021"]
[null,"POLITICA DE SEGURIDAD DIGITAL ",null,{"$f":"+COUNT(G59:O59)","v":4},7.0000000000000007E-2,0.92999999999999994,7.0000000000000007E-2,7.0000000000000007E-2,7.0000000000000007E-2,7.0000000000000007E-2,null,null,null,null,null,2021,"Se realiza primer seguimiento con corte a julio del 2021. \nSe realiza segundo seguimiento con corte a octubre del 2021.\nSe realiza tercer seguimiento con corte a marzo del año 2022","Vigencia 2021"]
[null,"POLITICA DE PARTICIPACIÓN CIUDADANA",null,4,{"$f":"+MAX(G60:O60)","v":0.59},0.41000000000000003,7.0000000000000007E-2,0.26,0.33,0.59,null,null,null,null,null,2021,"Se realiza primer seguimiento con corte a julio del 2021. \nSe realiza segundo seguimiento con corte a octubre del 2021.\nSe realiza tercer seguimiento con corte a marzo del año 2022","Vigencia 2021"]
[null,"POLITICA DE SEGUIMIENTO Y EVALUACIÓN",null,4,0.44,0.56000000000000005,0.11,0.33,0.33,0.44,null,null,null,null,null,2021,"Se realiza primer seguimiento con corte a julio del 2021. \nSe realiza segundo seguimiento con corte a octubre del 2021.\nSe realiza tercer seguimiento con corte a marzo del año 2022","Vigencia 2021"]
[null,"POLITICA DE TRANSPARENCIA",null,3,0.22,0.78,0.11,0.11,0.22,null,null,null,null,null,null,2021,"Se realiza primer seguimiento con corte a julio del 2021. \nSe realiza segundo seguimiento con corte a octubre del 2021.\nSe realiza tercer seguimiento con corte a marzo del año 2022","Vigencia 2021"]
[null,"POLITICA DOCUMENTAL",null,4,0.33,0.66999999999999993,0.17,0.17,0.17,0.33,null,null,null,null,null,2021,"Se realiza primer seguimiento con corte a julio del 2021. \nSe realiza segundo seguimiento con corte a octubre del 2021.\nSe realiza tercer seguimiento con corte a marzo del año 2022","Vigencia 2021"]
[null,"POLITICA DEL SISTEMA DE ATENCIÓN AL CIUDADANO",null,5,0.5,0.5,0.06,0.19,0.22,0.28000000000000003,0.5,null,null,null,null,2021,"Se realiza primer seguimiento con corte a julio del 2021. \nSe realiza segundo seguimiento con corte a octubre del 2021.\nSe realiza tercer seguimiento con corte a marzo del año 2022","Vigencia 2021"]
[null,null,null,null,null,{"$f":"+(MAX(G7:K7)+MAX(G23:K23)+MAX(G24:K24)+MAX(G26:K26)+MAX(#REF!)+MAX(G28:K28)+MAX(G29:K29)+MAX(G30:K30)+MAX(G31:K31)+MAX(G32:K32)+MAX(G33:K33)+MAX(G34:K34)+MAX(G35:K35)+MAX(G36:K36)+MAX(G37:K37)+MAX(G38:K38)+MAX(G39:K39)+MAX(G40:K40)+MAX(#REF!)+MAX(#REF!)+MAX(#REF!)+MAX(#REF!)+MAX(#REF!)+MAX(#REF!)+MAX(#REF!)+MAX(#REF!)+MAX(#REF!))/COUNT(D7:D64)","v":{"$error":"#REF!"}},{"$f":"100%-F65","v":{"$error":"#REF!"}}]

{"sheet":"FUENTES","index":3,"n_rows":31,"n_cols":8,"rows_kept":31,"cut":false,"hidden":false,"merged":[[2,3,2,7]]}
[]
[]
[null,null,null,"FECHAS DE SEGUIMIENTO "]
[null,"PLANES DE MEJORAMIENTO","LINK DE ACCESO ONEDRIVE","PRIMER SEGUIMIENTO","SEGUNDO SEGUIMIENTO","TERCER SEGUIMIENTO","CUARTO SEGUIMIENTO","QUINTO SEGUIMIENTO"]
[null,"PM SISTEMA DE GESTIÓN AMBIENTAL",{"$f":"+COUNT(D5:H5)","v":0}]
[null,"PM REACREDITACIÓN SOCIALES",{"$f":"+COUNT(D6:H6)","v":0}]
[null,"PM CONTRALORIA",0]
[null,"PM CONDICIONES INCIALES",0]
[null,"PM BRECHAS TRANSPARENCIA",0]
[null,"PM FURAG - PLANEACIÓN",0]
[null,"PM FURAG - SISTEMAS Y TECNOLOGIA",0]
[null,"PM FURAG - CONTROL INTERNO",0]
[null,"PM FURAG - SERVICIO DE ATENCIÓN AL CIUDADANO",0]
[null,"PM FURAG - COMUNICACIONES",0]
[null,"PM FURAG - ARCHIVO Y CORRESPONDENCIA",0]
[null,"PM CONDICIONES INSTITUCIONALES",0]
[null,"PM OMIS - SECCIONAL UBATÉ",0]
[null,"PM OMIS - SECCIONAL GIRARDOT",0]
[null,"PM OMIS - EXTENSIÓN ZIPAQUIRA",0]
[null,"PM OMIS - EXTENSIÓN SOACHA",0]
[null,"PM OMIS -  EXTENSIÓN FACATATIVA",0]
[null,"PM OMIS - EXTENSIÓN CHÍA",0]
[null,"PM SABER PRO - ADMON EMPRESAS FGGA",0]
[null,"PM SABER PRO - ENFERMERIA GDTO",0]
[null,"PM SABER PRO -  MUSICA ZIPA",0]
[null,"PM SABER PRO - LIC CIENCIAS DEL DEPORTE FGGA",0]
[null,"PM SABER PRO - ZOOTECNIA FGGA",0]
[null,"PM SABER PRO - ING ELECTRONICA FGGA",0]
[null,"PM SABER PRO - LIC CIENCIAS SOCIALES FGGA",0]
[null,"PM LEY ANTISOBORNO",0]
[null,"CITGO DIGITAL",0]